[Event "Uppsala GM 2019"]
[Site "Uppsala"]
[Date "2019.10.27"]
[Round "4.2"]
[White "Naumkin, Igor"]
[Black "Rydstrom, Tom"]
[Result "1-0"]
[ECO "D46"]
[WhiteElo "2385"]
[BlackElo "2322"]
[Annotator "NA"]
[PlyCount "87"]
[EventDate "2019.10.25"]
[EventType "tourn"]
[EventCountry "SWE"]
[SourceTitle "playchess.com"]
[Source "ChessBase"]
[SourceQuality "1"]
[TimeControl "5400+30"]

1. d4 {[%emt 0:16:37]} Nf6 {[%emt 0:00:00]} 2. c4 {[%emt 0:00:22]} e6 {[%emt 0:00:00]} 3. Nf3 {[%emt 0:00:07]} d5 {[%emt 0:00:00]} 4. Nc3 {[%emt 0:00:05]} c6 {[%emt 0:00:00]} 5. e3 {[%emt 0:00:14]} Nbd7 {[%emt 0:00:06]} 6. Qc2 {[%emt 0:00:06]} Bd6 {[%emt 0:00:07]} 7. Bd3 {[%emt 0:00:05]} O-O {[%emt 0:02:04]} 8. O-O {[%emt 0:00:29]} Qe7 {[%emt 0:02:09]} 9. c5 {[%emt 0:00:38]} Bc7 {[%emt 0:00:27]} 10. e4 {[%emt 0:00:12]} e5 {[%emt 0:02:34]} 11. exd5 {[%emt 0:01:30]} cxd5 {[%emt 0:00:41]} 12. Bg5 {[%emt 0:05:37]} e4 {[%emt 0:03:33]} 13. Nxd5 {[%emt 0:02:08]} Nxd5 {[%emt 0:00:03]} 14. Bxe7 {[%emt 0:00:25]} exd3 {[%emt 0:00:03]} 15. Qc4 {[%emt 0:04:52]} Nxe7 {[%emt 0:00:24]} 16. d5 {[%emt 0:01:00]} Ne5 {[%emt 0:01:33]} 17. Nxe5 {[%emt 0:01:02]} Bxe5 {[%emt 0:00:02]} 18. Rae1 {[%emt 0:10:41]} Bf6 {[%emt 0:00:07]} 19. Qxd3 {[%emt 0:01:41]} Bd7 {[%emt 0:01:32]} 20. Qb3 {[%emt 0:07:21]} Rab8 {[%emt 0:01:47]} 21. Re4 {[%emt 0:05:25]} Rfc8 {[%emt 0:03:17]} 22. Rc1 {[%emt 0:03:29]} Bg5 {[%emt 0:26:03]} 23. f4 {[%emt 0:05:11]} Bf6 {[%emt 0:00:04]} 24. Rb4 {[%emt 0:01:46]} b6 {[%emt 0:12:24]} 25. c6 {[%emt 0:02:07]} h5 {[%emt 0:00:53]} 26. Rbc4 {[%emt 0:02:06]} Be8 {[%emt 0:01:19]} 27. Qd3 {[%emt 0:06:35]} b5 {[%emt 0:12:52]} 28. R4c2 {[%emt 0:02:10]} Rb6 {[%emt 0:10:55]} 29. d6 {[%emt 0:01:54]} Rbxc6 {[%emt 0:00:03]} 30. dxe7 {[%emt 0:03:37]} Rxc2 {[%emt 0:00:10]} 31. Rxc2 {[%emt 0:00:09]} Rxc2 {[%emt 0:00:02]} 32. Qxc2 {[%emt 0:00:48]} Bxe7 {[%emt 0:00:02]} 33. Qe2 {[%emt 0:02:16]} Bc5+ {[%emt 0:01:36]} 34. Kf1 {[%emt 0:01:02]} Bd7 {[%emt 0:00:02]} 35. Qxh5 {[%emt 0:00:15]} Bb6 {[%emt 0:00:01]} 36. Qd5 {[%emt 0:01:38]} Be8 {[%emt 0:00:56]} 37. f5 {[%emt 0:00:42]} Kf8 {[%emt 0:00:13]} 38. g4 {[%emt 0:00:31]} f6 {[%emt 0:00:31]} 39. a3 {[%emt 0:01:05]} Ke7 {[%emt 0:00:36]} 40. Qe6+ {[%emt 0:01:22]} Kf8 {[%emt 0:00:12]} 41. h4 {[%emt 0:00:22]} Bc7 {[%emt 0:00:36]} 42. g5 {[%emt 0:01:58]} Bd8 {[%emt 0:01:33]} 43. g6 {[%emt 0:00:25]} a5 {[%emt 0:00:03]} 44. h5 {[%emt 0:00:34]} 1-0

[Event "Uppsala GM 2019"]
[Site "Uppsala"]
[Date "2019.10.27"]
[Round "4.3"]
[White "Peng, Li Min"]
[Black "Kenneskog, Theodor"]
[Result "1-0"]
[ECO "B22"]
[WhiteElo "2454"]
[BlackElo "2278"]
[Annotator "ChessBase"]
[PlyCount "81"]
[EventDate "2019.10.25"]
[EventType "tourn"]
[EventCountry "SWE"]
[SourceTitle "playchess.com"]
[Source "ChessBase"]
[SourceQuality "1"]
[TimeControl "5400+30"]

1. e4 {[%emt 1:27:27]} c5 {[%emt 1:27:26]} 2. c3 {[%emt 0:00:29]} d5 {[%emt 0:00:29]} 3. exd5 {[%emt 0:00:30]} Qxd5 {[%emt 0:00:29]} 4. d4 {[%emt 0:00:28]} Nf6 {[%emt 0:00:29]} 5. Nf3 {[%emt 0:00:29]} Nc6 {[%emt 0:00:28]} 6. Be2 {[%emt 0:00:30]} e6 {[%emt 0:00:30]} 7. O-O {[%emt 0:00:30]} Be7 {[%emt 0:00:35]} 8. Be3 {[%emt 0:00:29]} O-O {[%emt 0:00:44]} 9. dxc5 {[%emt 0:00:29]} Qxd1 {[%emt 0:00:29]} 10. Rxd1 {[%emt 0:00:30]} Ng4 {[%emt 0:00:29]} 11. b4 {[%emt 0:00:30]} Nxe3 {[%emt 0:00:30]} 12. fxe3 {[%emt 0:00:30]} a5 {[%emt 0:00:32]} 13. b5 {[%emt 0:00:29]} Nb8 {[%emt 0:00:29]} 14. Nbd2 {[%emt 0:00:41]} Bxc5 {[%emt 0:00:30]} 15. Kf2 {[%emt 0:00:29]} Nd7 {[%emt 0:00:46]} 16. Ne4 {[%emt 0:00:29]} b6 {[%emt 0:00:38]} 17. Nd4 {[%emt 0:00:54]} Bb7 {[%emt 0:00:54]} 18. Bf3 {[%emt 0:00:30]} Bxd4 {[%emt 0:00:43]} 19. exd4 {[%emt 0:00:32]} Bd5 {[%emt 0:00:32]} 20. Nd2 {[%emt 0:00:42]} Nf6 {[%emt 0:00:32]} 21. c4 {[%emt 0:00:30]} Bxf3 {[%emt 0:00:30]} 22. Kxf3 {[%emt 0:00:32]} Rac8 {[%emt 0:00:33]} 23. Rac1 {[%emt 0:00:29]} Rfe8 {[%emt 0:00:46]} 24. Ne4 {[%emt 0:00:31]} Nxe4 {[%emt 0:00:35]} 25. Kxe4 {[%emt 0:00:29]} Kf8 {[%emt 0:00:28]} 26. c5 {[%emt 0:00:29]} Rb8 {[%emt 0:00:35]} 27. c6 {[%emt 0:00:30]} Rbc8 {[%emt 0:00:35]} 28. Rd2 {[%emt 0:00:37]} g6 {[%emt 0:00:32]} 29. c7 {[%emt 0:00:31]} Ke7 {[%emt 0:00:56]} 30. Rc6 {[%emt 0:00:36]} Kd7 {[%emt 0:00:34]} 31. Rdc2 {[%emt 0:00:29]} f6 {[%emt 0:00:36]} 32. h4 {[%emt 0:00:31]} a4 {[%emt 0:00:35]} 33. R2c4 {[%emt 0:00:30]} h6 {[%emt 0:00:31]} 34. Rxb6 {[%emt 0:00:39]} Rxc7 35. Rxa4 {[%emt 0:00:29]} e5 {[%emt 0:01:01]} 36. d5 {[%emt 0:00:30]} f5+ {[%emt 0:00:28]} 37. Ke3 {[%emt 0:00:35]} g5 {[%emt 0:00:39]} 38. Rxh6 {[%emt 0:00:34]} Rc3+ {[%emt 0:00:37]} 39. Kd2 {[%emt 0:00:30]} Rg3 {[%emt 0:00:29]} 40. Ra7+ {[%emt 0:00:32]} Kc8 {[%emt 0:00:29]} 41. Ra8+ {[%emt 0:02:20]} 1-0

[Event "Uppsala GM 2019"]
[Site "Uppsala"]
[Date "2019.10.27"]
[Round "4.4"]
[White "Ernst, Thomas"]
[Black "Mirzoev, Emil"]
[Result "1-0"]
[ECO "D31"]
[WhiteElo "2328"]
[BlackElo "2455"]
[Annotator "ChessBase"]
[PlyCount "93"]
[EventDate "2019.10.25"]
[EventType "tourn"]
[EventCountry "SWE"]
[SourceTitle "playchess.com"]
[Source "ChessBase"]
[SourceQuality "1"]
[TimeControl "5400+30"]

1. c4 {[%emt 1:27:27]} e6 {[%emt 1:27:30]} 2. Nc3 {[%emt 0:00:30]} d5 {[%emt 0:00:30]} 3. cxd5 {[%emt 0:00:31]} exd5 {[%emt 0:00:29]} 4. d4 {[%emt 0:00:29]} c6 {[%emt 0:00:30]} 5. Nf3 {[%emt 0:00:30]} Bd6 {[%emt 0:00:31]} 6. g3 {[%emt 0:00:31]} h6 {[%emt 0:00:33]} 7. Bg2 {[%emt 0:00:29]} Nf6 {[%emt 0:00:29]} 8. O-O {[%emt 0:00:30]} O-O {[%emt 0:00:30]} 9. Ne5 {[%emt 0:00:32]} Ng4 {[%emt 0:00:37]} 10. e4 {[%emt 0:00:38]} Bxe5 {[%emt 0:00:39]} 11. dxe5 {[%emt 0:00:32]} d4 {[%emt 0:00:30]} 12. Ne2 {[%emt 0:00:32]} d3 {[%emt 0:00:40]} 13. Nc3 {[%emt 0:00:51]} Nxe5 {[%emt 0:00:30]} 14. h3 {[%emt 0:00:33]} Na6 {[%emt 0:00:54]} 15. Kh2 {[%emt 0:00:36]} Nc4 {[%emt 0:00:43]} 16. b3 {[%emt 0:00:56]} d2 {[%emt 0:00:29]} 17. bxc4 {[%emt 0:00:29]} dxc1=Q {[%emt 0:00:31]} 18. Rxc1 {[%emt 0:00:35]} Be6 {[%emt 0:00:31]} 19. Ne2 {[%emt 0:00:55]} Qa5 {[%emt 0:00:34]} 20. Qc2 {[%emt 0:00:34]} Rfd8 {[%emt 0:00:38]} 21. Nf4 {[%emt 0:00:32]} Rd2 {[%emt 0:00:40]} 22. Qb1 {[%emt 0:00:32]} Nc5 {[%emt 0:00:33]} 23. Nxe6 fxe6 {[%emt 0:00:29]} 24. Rcd1 {[%emt 0:01:05]} Rad8 {[%emt 0:00:36]} 25. Rxd2 {[%emt 0:00:29]} Rxd2 {[%emt 0:00:29]} 26. e5 {[%emt 0:00:29]} Qxa2 {[%emt 0:00:43]} 27. Qg6 {[%emt 0:00:31]} Rxf2 {[%emt 0:00:33]} 28. Rxf2 {[%emt 0:00:42]} Qxf2 {[%emt 0:00:30]} 29. Qe8+ {[%emt 0:00:31]} Kh7 {[%emt 0:00:29]} 30. Qe7 {[%emt 0:00:32]} a5 {[%emt 0:00:31]} 31. g4 {[%emt 0:00:35]} Qf4+ {[%emt 0:00:40]} 32. Kh1 {[%emt 0:00:30]} Qxe5 {[%emt 0:00:30]} 33. h4 {[%emt 0:00:36]} Nd3 {[%emt 0:00:36]} 34. h5 {[%emt 0:00:38]} Nf2+ {[%emt 0:00:46]} 35. Kg1 {[%emt 0:00:31]} Qe1+ {[%emt 0:00:29]} 36. Kh2 {[%emt 0:00:30]} Nxg4+ {[%emt 0:00:32]} 37. Kh3 {[%emt 0:00:29]} Nf2+ {[%emt 0:00:31]} 38. Kg3 {[%emt 0:00:31]} Ne4+ {[%emt 0:00:30]} 39. Kf4 {[%emt 0:00:29]} Nf6 {[%emt 0:00:35]} 40. Qf7 {[%emt 0:00:32]} Qf2+ {[%emt 0:00:31]} 41. Bf3 {[%emt 0:00:32]} Qh4+ {[%emt 0:00:40]} 42. Ke3 {[%emt 0:00:30]} Qg5+ {[%emt 0:00:30]} 43. Ke2 {[%emt 0:00:31]} Ng4 {[%emt 0:00:33]} 44. Be4+ {[%emt 0:00:30]} Qf5 {[%emt 0:00:42]} 45. Bxf5+ {[%emt 0:00:30]} exf5 {[%emt 0:00:29]} 46. Qxf5+ {[%emt 0:00:29]} Kh8 {[%emt 0:00:29]} 47. Qxg4 {[%emt 0:00:30]} 1-0

[Event "Uppsala GM 2019"]
[Site "Uppsala"]
[Date "2019.10.27"]
[Round "4.5"]
[White "Bogdanov, Egor"]
[Black "Pavlov, Sergey"]
[Result "1-0"]
[ECO "B12"]
[WhiteElo "2409"]
[BlackElo "2485"]
[Annotator "ChessBase"]
[PlyCount "165"]
[EventDate "2019.10.25"]
[EventType "tourn"]
[EventCountry "SWE"]
[SourceTitle "playchess.com"]
[Source "ChessBase"]
[SourceQuality "1"]
[TimeControl "5400+30"]

1. e4 {[%emt 1:27:27]} c6 {[%emt 1:27:29]} 2. d4 {[%emt 0:00:29]} d5 {[%emt 0:00:29]} 3. e5 {[%emt 0:00:30]} c5 {[%emt 0:00:42]} 4. dxc5 {[%emt 0:00:29]} Nc6 {[%emt 0:00:30]} 5. a3 {[%emt 0:00:38]} e6 {[%emt 0:00:30]} 6. Nf3 {[%emt 0:00:30]} Bxc5 {[%emt 0:00:30]} 7. b4 {[%emt 0:00:31]} Bb6 {[%emt 0:00:32]} 8. Bd3 {[%emt 0:00:29]} Nge7 {[%emt 0:00:30]} 9. O-O {[%emt 0:00:33]} O-O {[%emt 0:00:30]} 10. Bb2 {[%emt 0:00:36]} Ng6 {[%emt 0:00:30]} 11. Re1 {[%emt 0:00:30]} f6 {[%emt 0:00:29]} 12. exf6 {[%emt 0:00:30]} gxf6 {[%emt 0:00:29]} 13. c4 {[%emt 0:00:30]} Nf4 {[%emt 0:00:30]} 14. Bf1 {[%emt 0:00:33]} dxc4 {[%emt 0:00:38]} 15. Bxc4 {[%emt 0:00:30]} Qxd1 {[%emt 0:00:30]} 16. Rxd1 {[%emt 0:00:29]} Kg7 {[%emt 0:00:43]} 17. Nc3 {[%emt 0:00:31]} a6 {[%emt 0:00:38]} 18. Ne4 {[%emt 0:00:33]} e5 {[%emt 0:00:36]} 19. Bc1 {[%emt 0:00:39]} Be6 {[%emt 0:00:36]} 20. Bxe6 {[%emt 0:00:39]} Nxe6 {[%emt 0:00:29]} 21. Nd6 {[%emt 0:00:35]} Rab8 {[%emt 0:00:34]} 22. Be3 {[%emt 0:00:32]} Bxe3 {[%emt 0:00:29]} 23. fxe3 {[%emt 0:00:28]} Ne7 {[%emt 0:00:42]} 24. Rac1 {[%emt 0:00:31]} Rfd8 {[%emt 0:00:42]} 25. Kf2 {[%emt 0:00:40]} b5 {[%emt 0:00:29]} 26. Ne4 {[%emt 0:00:32]} Rxd1 {[%emt 0:00:35]} 27. Rxd1 {[%emt 0:00:29]} Rd8 {[%emt 0:00:30]} 28. Rxd8 {[%emt 0:00:31]} Nxd8 {[%emt 0:02:09]} 29. Nc5 {[%emt 0:00:29]} a5 {[%emt 0:00:00]} 30. bxa5 {[%emt 0:00:30]} Ndc6 {[%emt 0:00:00]} 31. a6 {[%emt 0:00:29]} Nc8 {[%emt 0:00:06]} 32. Nd2 {[%emt 0:00:37]} Kf7 {[%emt 0:00:33]} 33. Nde4 {[%emt 0:00:30]} Ke7 {[%emt 0:00:29]} 34. Nc3 {[%emt 0:00:00]} N8a7 {[%emt 0:00:36]} 35. N5e4 {[%emt 0:00:07]} Ke6 {[%emt 0:00:40]} 36. Ke2 {[%emt 0:00:31]} Na5 {[%emt 0:00:32]} 37. Nd2 {[%emt 0:00:31]} N5c6 {[%emt 0:00:38]} 38. Na2 {[%emt 0:00:34]} Kd5 {[%emt 0:00:32]} 39. Kd3 {[%emt 0:00:29]} Kc5 {[%emt 0:00:33]} 40. Ne4+ {[%emt 0:00:30]} Kb6 {[%emt 0:00:29]} 41. Nxf6 {[%emt 0:00:29]} Kxa6 {[%emt 0:00:29]} 42. Nc3 {[%emt 0:00:34]} Kb6 {[%emt 0:00:32]} 43. Nxh7 {[%emt 0:00:29]} Nc8 {[%emt 0:00:32]} 44. Nf6 {[%emt 0:00:33]} Nd6 {[%emt 0:00:30]} 45. Nfd5+ {[%emt 0:00:29]} Kb7 {[%emt 0:00:28]} 46. h4 {[%emt 0:00:35]} Nf5 {[%emt 0:00:31]} 47. h5 {[%emt 0:00:29]} Ka6 {[%emt 0:00:34]} 48. g4 {[%emt 0:00:33]} Ng7 {[%emt 0:00:29]} 49. Nc7+ {[%emt 0:00:29]} Ka5 {[%emt 0:00:31]} 50. N7xb5 {[%emt 0:00:31]} Ne7 {[%emt 0:00:30]} 51. Ke4 {[%emt 0:00:30]} Kb6 {[%emt 0:00:33]} 52. Kxe5 {[%emt 0:00:30]} Kc5 {[%emt 0:01:13]} 53. Kf6 {[%emt 0:00:29]} Nd5+ {[%emt 0:00:00]} 54. Nxd5 {[%emt 0:00:30]} Ne8+ {[%emt 0:00:15]} 55. Ke7 {[%emt 0:00:30]} Ng7 {[%emt 0:00:29]} 56. Nbc3 {[%emt 0:00:29]} Kc4 {[%emt 0:00:31]} 57. h6 {[%emt 0:00:29]} Ne6 {[%emt 0:00:28]} 58. Kxe6 {[%emt 0:00:30]} Kd3 {[%emt 0:00:29]} 59. h7 {[%emt 0:00:30]} Kd2 {[%emt 0:00:29]} 60. g5 {[%emt 0:00:29]} Kc2 {[%emt 0:00:29]} 61. e4 {[%emt 0:00:29]} Kb3 {[%emt 0:00:29]} 62. e5 {[%emt 0:00:29]} Kxa3 {[%emt 0:00:29]} 63. g6 {[%emt 0:00:30]} Kb3 {[%emt 0:00:29]} 64. Kf6 {[%emt 0:00:29]} Kc4 {[%emt 0:00:29]} 65. e6 {[%emt 0:00:29]} Kc5 {[%emt 0:00:29]} 66. Ne3 {[%emt 0:00:30]} Kd4 {[%emt 0:00:29]} 67. Ncd1 {[%emt 0:00:30]} Kc5 {[%emt 0:00:29]} 68. g7 {[%emt 0:00:29]} Kd6 {[%emt 0:00:29]} 69. g8=Q {[%emt 0:00:33]} Kc5 {[%emt 0:00:30]} 70. Qd8 {[%emt 0:00:31]} Kc6 {[%emt 0:00:29]} 71. Qd5+ {[%emt 0:00:29]} Kc7 {[%emt 0:00:29]} 72. Qd7+ {[%emt 0:00:30]} Kb6 {[%emt 0:00:29]} 73. Nc3 {[%emt 0:00:31]} Kc5 {[%emt 0:00:29]} 74. Qd5+ {[%emt 0:00:29]} Kb4 {[%emt 0:00:30]} 75. Qc4+ {[%emt 0:00:31]} Ka3 {[%emt 0:00:35]} 76. Nb1+ {[%emt 0:00:34]} Kb2 {[%emt 0:00:30]} 77. Qc2+ {[%emt 0:00:39]} Ka1 {[%emt 0:00:30]} 78. Qc1 {[%emt 0:00:37]} Ka2 {[%emt 0:00:30]} 79. Nc4 {[%emt 0:00:35]} Kb3 {[%emt 0:00:31]} 80. Qc3+ {[%emt 0:00:32]} Ka4 {[%emt 0:00:30]} 81. e7 {[%emt 0:00:34]} Kb5 {[%emt 0:00:32]} 82. e8=Q+ {[%emt 0:00:34]} Kc5 {[%emt 0:00:31]} 83. Qee5+ {[%emt 0:02:38]} 1-0

[Event "Uppsala GM 2019"]
[Site "Uppsala"]
[Date "2019.10.28"]
[Round "5.2"]
[White "Wahlund, Max"]
[Black "Peng, Li Min"]
[Result "0-1"]
[ECO "E46"]
[WhiteElo "2176"]
[BlackElo "2454"]
[Annotator "ChessBase"]
[PlyCount "58"]
[EventDate "2019.10.25"]
[EventType "tourn"]
[EventCountry "SWE"]
[SourceTitle "playchess.com"]
[Source "ChessBase"]
[SourceQuality "1"]
[TimeControl "5400+30"]

1. d4 {[%emt 0:00:00]} Nf6 {[%emt 0:10:03]} 2. c4 {[%emt 0:00:00]} e6 {[%emt 0:00:51]} 3. Nc3 {[%emt 0:00:00]} Bb4 {[%emt 0:00:20]} 4. e3 {[%emt 0:00:19]} O-O {[%emt 0:00:06]} 5. Nge2 {[%emt 0:00:04]} d5 {[%emt 0:00:40]} 6. a3 {[%emt 0:00:06]} Bd6 {[%emt 0:00:07]} 7. cxd5 exd5 {[%emt 0:00:04]} 8. Ng3 {[%emt 0:00:20]} c5 {[%emt 0:01:30]} 9. Be2 {[%emt 0:01:25]} cxd4 {[%emt 0:00:44]} 10. exd4 {[%emt 0:00:33]} Nc6 {[%emt 0:00:14]} 11. b4 {[%emt 0:01:45]} a6 {[%emt 0:09:24]} 12. O-O {[%emt 0:00:13]} b5 {[%emt 0:00:05]} 13. Bg5 {[%emt 0:03:06]} Be6 {[%emt 0:00:16]} 14. f4 {[%emt 0:05:55]} h6 {[%emt 0:09:58]} 15. Bh4 {[%emt 0:03:35]} Be7 {[%emt 0:05:43]} 16. f5 {[%emt 0:00:38]} Bd7 {[%emt 0:00:01]} 17. Kh1 {[%emt 0:03:46]} Qb8 {[%emt 0:09:28]} 18. Qd2 {[%emt 0:09:03]} Rd8 {[%emt 0:02:07]} 19. Rad1 {[%emt 0:08:03]} Qd6 {[%emt 0:08:33]} 20. Bf3 {[%emt 0:09:29]} Nh7 {[%emt 0:00:02]} 21. f6 {[%emt 0:10:01]} Bxf6 {[%emt 0:00:59]} 22. Bxd5 {[%emt 0:01:53]} Bxh4 {[%emt 0:05:06]} 23. Nge4 {[%emt 0:00:05]} Qc7 {[%emt 0:02:56]} 24. Rxf7 {[%emt 0:04:35]} Kh8 {[%emt 0:00:15]} 25. Be6 {[%emt 0:08:56]} Ng5 {[%emt 0:05:47]} 26. Nxg5 {[%emt 0:03:35]} Bxg5 {[%emt 0:00:03]} 27. Qd3 {[%emt 0:00:58]} Ne7 {[%emt 0:03:26]} 28. Nd5 {[%emt 0:02:54]} Qd6 {[%emt 0:00:01]} 29. Nxe7 {[%emt 0:03:43]} Bxe6 {[%emt 0:25:41]} 0-1

[Event "Uppsala GM 2019"]
[Site "Uppsala"]
[Date "2019.10.28"]
[Round "5.4"]
[White "Kenneskog, Theodor"]
[Black "Bogdanov, Egor"]
[Result "1/2-1/2"]
[ECO "E84"]
[WhiteElo "2278"]
[BlackElo "2409"]
[Annotator "NA"]
[PlyCount "62"]
[EventDate "2019.10.25"]
[EventType "tourn"]
[EventCountry "SWE"]
[SourceTitle "playchess.com"]
[Source "ChessBase"]
[SourceQuality "1"]
[TimeControl "5400+30"]

{[%evp 26,57,106,66,71,69,85,63,72,59,71,63,65,81,70,72,53,74,64,47,57,67,62,62,67,11,11,12,11,8,12,14,18,10]} 1. d4 {[%emt 0:00:00]} Nf6 {[%emt 0:05:49]} 2. c4 {[%emt 0:00:00]} g6 {[%emt 0:00:25]} 3. Nc3 {[%emt 0:00:00]} Bg7 {[%emt 0:00:16]} 4. e4 {[%emt 0:00:00]} O-O {[%emt 0:00:05]} 5. f3 {[%emt 0:00:13]} d6 {[%emt 0:00:09]} 6. Nge2 {[%emt 0:00:05]} Nc6 {[%emt 0:01:11]} 7. Be3 {[%emt 0:00:06]} a6 {[%emt 0:01:11]} 8. Qd2 {[%emt 0:00:09]} Rb8 {[%emt 0:00:31]} 9. Rc1 {[%emt 0:00:07]} Bd7 {[%emt 0:01:18]} 10. b3 {[%emt 0:00:08]} e6 {[%emt 0:00:49] E84: King's Indian: Sämisch Panno: 7 Nge2 a6 8 Qd2 Rb8} 11. g3 {[%emt 0:04:27]} Ne8 $146 {[%emt 0:01:26]} ({Predecessor:} 11... b5 12. cxb5 axb5 13. Bg2 e5 14. O-O exd4 15. Nxd4 Nxd4 16. Bxd4 c5 17. Bf2 b4 18. Ne2 {1-0 (45) Kovalenko,I (2586)-Goganov,A (2550) Moscow 2013}) 12. Bg2 {[%emt 0:01:41]} f5 {[%emt 0:00:35]} 13. d5 {[%emt 0:02:51]} Ne5 {[%emt 0:05:36]} 14. exf5 {[%emt 0:14:50]} exf5 {[%emt 0:01:01]} 15. O-O {[%emt 0:00:09]} Nf6 {[%emt 0:04:23]} 16. Nd4 {[%emt 0:08:06]} Re8 {[%emt 0:00:54]} 17. Rfe1 {[%emt 0:00:58]} Qc8 {[%emt 0:06:54]} 18. h3 {[%emt 0:06:07]} c5 {[%emt 0:04:58]} 19. dxc6 $1 {[%emt 0:00:43]} bxc6 {[%emt 0:00:31]} 20. f4 {[%emt 0:07:26]} Nf7 {[%emt 0:01:47]} 21. Bf2 {[%emt 0:00:06]} Qc7 {[%emt 0:05:37]} 22. Rxe8+ {[%emt 0:01:17]} Rxe8 {[%emt 0:01:56]} 23. Re1 {[%emt 0:00:16]} Qc8 {[%emt 0:05:56]} 24. Rxe8+ {[%emt 0:07:06]} Qxe8 {[%emt 0:00:23]} 25. Qe1 {[%emt 0:00:49]} Qxe1+ {[%emt 0:05:22]} 26. Bxe1 {[%emt 0:00:06]} d5 {[%emt 0:01:34]} 27. cxd5 {[%emt 0:06:48]} Nxd5 {[%emt 0:01:03]} 28. Nde2 {[%emt 0:00:38]} Nb4 {[%emt 0:00:17]} 29. Bf2 $11 {[%emt 0:01:13]} Bf8 {[%emt 0:10:54]} 30. Nc1 {[%emt 0:02:33]} Nd6 {[%emt 0:03:49]} 31. Bc5 {[%emt 0:08:43]} Nb7 {[%emt 0:02:57]} 1/2-1/2

[Event "Uppsala GM 2019"]
[Site "Uppsala"]
[Date "2019.10.28"]
[Round "6.1"]
[White "Ernst, Thomas"]
[Black "Kovalev, Andrei"]
[Result "1/2-1/2"]
[ECO "B42"]
[WhiteElo "2328"]
[BlackElo "2511"]
[Annotator "RC"]
[PlyCount "68"]
[EventDate "2019.10.25"]
[EventType "tourn"]
[EventCountry "SWE"]
[SourceTitle "playchess.com"]
[Source "ChessBase"]
[SourceQuality "1"]
[TimeControl "5400+30"]

1. e4 {[%emt 0:00:00]} c5 {[%emt 0:00:00]} 2. Nf3 {[%emt 0:00:00]} e6 {[%emt 0:00:06]} 3. d4 {[%emt 0:00:00]} cxd4 {[%emt 0:00:05]} 4. Nxd4 {[%emt 0:00:00]} a6 {[%emt 0:00:06]} 5. Bd3 {[%emt 0:00:14]} Nf6 {[%emt 0:00:45]} 6. O-O {[%emt 0:00:15]} e5 {[%emt 0:00:25]} 7. Nf3 {[%emt 0:04:35]} d6 {[%emt 0:10:53]} 8. c4 {[%emt 0:00:11]} Bg4 {[%emt 0:04:31]} 9. Nc3 {[%emt 0:00:33]} Nc6 {[%emt 0:01:09]} 10. Be3 {[%emt 0:00:39]} Be7 {[%emt 0:07:44]} 11. h3 {[%emt 0:21:02]} Bh5 {[%emt 0:00:36]} 12. Nd5 {[%emt 0:02:21]} Rc8 {[%emt 0:05:24]} 13. Re1 {[%emt 0:08:37]} O-O {[%emt 0:04:27]} 14. Rc1 {[%emt 0:04:53]} Nd7 {[%emt 0:10:10]} 15. g4 {[%emt 0:02:56]} Bg6 {[%emt 0:00:09]} 16. b4 {[%emt 0:00:12]} Nf6 {[%emt 0:04:46]} 17. Qd2 {[%emt 0:08:09]} h5 {[%emt 0:07:47]} 18. Nxf6+ {[%emt 0:06:25]} Bxf6 {[%emt 0:00:11]} 19. g5 {[%emt 0:00:23]} Be7 {[%emt 0:00:11]} 20. a3 {[%emt 0:03:16]} Nd4 {[%emt 0:10:08]} 21. Bxd4 {[%emt 0:06:25]} exd4 {[%emt 0:00:08]} 22. Kh2 {[%emt 0:00:34]} b5 {[%emt 0:02:34]} 23. cxb5 {[%emt 0:05:35]} Rxc1 {[%emt 0:01:01]} 24. Qxc1 {[%emt 0:03:48]} axb5 {[%emt 0:00:09]} 25. Bxb5 {[%emt 0:00:23]} d5 {[%emt 0:05:26]} 26. e5 {[%emt 0:01:25]} Be4 {[%emt 0:03:38]} 27. Nxd4 {[%emt 0:00:11]} Bxg5 {[%emt 0:01:13]} 28. f4 {[%emt 0:00:07]} Bh4 {[%emt 0:03:15]} 29. Rf1 {[%emt 0:01:04]} Qb6 {[%emt 0:02:28]} 30. Qc5 {[%emt 0:02:03]} Qg6 {[%emt 0:01:20]} 31. Rg1 {[%emt 0:00:09]} Qh6 {[%emt 0:00:10]} 32. Rf1 {[%emt 0:00:19]} Qg6 {[%emt 0:04:51]} 33. Rg1 {[%emt 0:00:12]} Qh6 {[%emt 0:00:11]} 34. Rf1 {[%emt 0:00:15]} Qg6 {[%emt 0:06:30]} 1/2-1/2

[Event "Uppsala GM 2019"]
[Site "Uppsala"]
[Date "2019.10.29"]
[Round "7.1"]
[White "Mirzoev, Emil"]
[Black "Kovalev, Andrei"]
[Result "*"]
[ECO "C91"]
[WhiteElo "2455"]
[BlackElo "2511"]
[Annotator "RC"]
[PlyCount "42"]
[EventDate "2019.10.25"]
[EventType "tourn"]
[EventCountry "SWE"]
[SourceTitle "playchess.com"]
[Source "ChessBase"]
[SourceQuality "1"]
[TimeControl "5400+30"]

1. e4 {[%emt 0:00:00]} e5 {[%emt 0:00:00]} 2. Nf3 {[%emt 0:00:09]} Nc6 {[%emt 0:00:00]} 3. Bb5 {[%emt 0:00:10]} a6 {[%emt 0:00:00]} 4. Ba4 {[%emt 0:00:11]} Nf6 {[%emt 1:32:00]} 5. O-O {[%emt 1:32:00]} Be7 {[%emt 0:00:33]} 6. Re1 {[%emt 0:00:18]} b5 {[%emt 0:00:15]} 7. Bb3 {[%emt 0:00:08]} d6 {[%emt 0:00:15]} 8. c3 {[%emt 0:00:15]} O-O {[%emt 0:00:26]} 9. d4 {[%emt 0:00:24]} Bg4 {[%emt 0:00:16]} 10. Be3 {[%emt 0:00:15]} exd4 {[%emt 0:01:09]} 11. cxd4 {[%emt 0:00:15]} Na5 {[%emt 0:00:03]} 12. Bc2 {[%emt 1:33:38]} c5 {[%emt 0:00:28]} 13. h3 {[%emt 0:00:44]} Bh5 {[%emt 0:01:25]} 14. g4 {[%emt 0:04:02]} Bg6 {[%emt 0:01:12]} 15. Nbd2 {[%emt 0:00:34]} Re8 {[%emt 0:02:37]} 16. d5 {[%emt 0:03:07]} Nd7 {[%emt 0:10:11]} 17. Nh2 {[%emt 0:05:02]} Bf6 {[%emt 0:03:03]} 18. Rb1 {[%emt 0:02:15]} Nc4 {[%emt 0:02:19]} 19. Nxc4 {[%emt 0:01:28]} bxc4 {[%emt 0:00:02]} 20. Bf4 {[%emt 0:08:49]} Bd4 {[%emt 0:05:05]} 21. Nf3 {[%emt 0:03:52]} Ne5 {[%emt 0:00:19]} *